fUSD/lending_fUSD_20251224
["ID","MTS","AMOUNT","RATE_DAILY","PERIOD"]
[399615435,1766549432422,-519.87265517,0.00015968,2]
[399615436,1766549432432,-200.0,0.00016243,2]
[399615437,1766549432442,-2905.74,0.00016263,2]
[399615438,1766549432452,-151.0,0.00016365,2]
[399615439,1766549432462,-444.04346118,0.00016438,2]
[399615440,1766549432472,-500.0,0.00016438,2]
[399615441,1766549432482,-500.0,0.00016438,2]
[399615442,1766549432492,-500.0,0.00016438,2]
[399615443,1766549432502,-500.0,0.00016438,2]
[399615444,1766549432511,-500.0,0.00016438,2]
[399615446,1766549432525,-8318.42,0.00016438,2]
[399615447,1766549432535,-300.0,0.0001669,2]
[399615448,1766549432545,-250.0,0.0001669,2]
[399615449,1766549432555,-250.0,0.0001669,2]
[399615451,1766549432565,-164.17,0.00016712,2]
[399615453,1766549432574,-2905.74,0.00016805,2]
[399615455,1766549432584,-420.0,0.00016976,2]
[399615457,1766549432594,-420.0,0.00016976,2]
[399615459,1766549432604,-442259.64,0.00016986,2]
[399615461,1766549432614,-1680.0,0.00017062,2]
[399615463,1766549432624,-2905.74,0.00017347,2]
[399615465,1766549432633,-16701.78751654,0.00017438,2]
[399615467,1766549432643,-2905.74,0.0001789,2]
[399615469,1766549432653,-3240.0,0.00018234,2]
[399615471,1766549432663,-2905.74,0.00018432,2]
[399615473,1766549432673,-587.0,0.0001857,2]
[399615475,1766549432684,-166.66,0.00018618,2]
[399615477,1766549432694,-1592.0,0.00018758,2]
[399615479,1766549432704,-1000.0,0.000189,2]
[399615481,1766549432714,-2905.74,0.00018974,2]
[399615483,1766549432724,-791.42240723,0.00019,2]
[399615486,1766549432735,-429.86109147,0.00019,2]
[399615488,1766549432744,-166.66,0.0001901,2]
[399615490,1766549432754,-309.66881756,0.00019082,2]
[399615492,1766549432764,-16701.78751654,0.00019356,2]
[399615494,1766549432773,-166.66,0.00019402,2]
[399615496,1766549432783,-204.0,0.00019469,2]
[399615498,1766549432794,-24859.0,0.000195,2]
[399615500,1766549432803,-2905.74,0.00019516,2]
[399615502,1766549432814,-239.0,0.00019625,2]
[399615504,1766549432824,-166.66,0.00019794,2]
[399615506,1766549432834,-2905.74,0.00020058,2]
[399615508,1766549432844,-5526.0,0.000201,3]
[399615510,1766549432855,-1000.0,0.00020112,2]
[399615512,1766549432865,-166.66,0.00020186,2]
[399615514,1766549432875,-823.0,0.00020313,2]
[399615516,1766549432888,-166.66,0.00020578,2]
[399615518,1766549432898,-2905.74,0.000206,2]
[399615520,1766549432908,-5526.0,0.000207,5]
[399615522,1766549432918,-1000.0,0.00020866,2]
[399615524,1766549432928,-500.0,0.00020973,2]
[399615526,1766549432938,-156.62518783,0.00020973,2]
[399615528,1766549432948,-500.0,0.00020973,2]
[399615530,1766549432958,-197.19876447,0.00020973,2]
[399615532,1766549432968,-530.33299684,0.00020973,2]
[399615534,1766549432978,-501.06943212,0.00020973,2]
[399615536,1766549432988,-207.58860749,0.00020973,2]
[399615538,1766549432998,-500.71273679,0.00020973,2]
[399615540,1766549433008,-168.0,0.00020991,2]
[399615542,1766549433018,-168.0,0.00021057,2]
[399615544,1766549433028,-168.0,0.00021128,2]
[399615547,1766549433039,-168.0,0.00021219,2]
[399615549,1766549433049,-16701.78751654,0.00021273,2]
[399615550,1766549433059,-324.21,0.000215,7]
[399615552,1766549433068,-1109.63317787,0.00021521,2]
[399615554,1766549433078,-670.69301146,0.00021521,2]
[399615556,1766549433087,-1000.0,0.0002162,2]
[399615558,1766549433097,-150.99,0.00021757,2]
[399615560,1766549433108,-3384.97,0.00021757,2]
[399615562,1766549433117,-9999.99,0.00021757,2]
[399615564,1766549433128,-2033.81,0.00021757,2]
[399615565,1766549433138,-150.99,0.00021757,2]
[399615566,1766549433147,-299.99,0.00021757,7]
[399615567,1766549433158,-999.99,0.00021757,2]
[399615568,1766549433168,-7401.84,0.00021757,2]
[399615569,1766549433178,-9999.99,0.00021757,2]
[399615570,1766549433188,-168.0,0.00021847,2]
[399615571,1766549433199,-1488.9,0.00021975,2]
[399615572,1766549433209,-521.46,0.00022,2]
[399615573,1766549433221,-278.78,0.00022,7]
[399615574,1766549433231,-171.61,0.00022048,2]
[399615575,1766549433242,-168.0,0.00022147,2]
[399615576,1766549433252,-168.0,0.00022199,2]
[399615577,1766549433263,-1152.0,0.0002222,2]
[399615578,1766549433288,-168.0,0.00022358,2]
[399615579,1766549433303,-1000.0,0.00022374,2]
[399615580,1766549433314,-168.0,0.00022426,2]
[399615581,1766549433325,-1000.0,0.000226,2]
[399615582,1766549433335,-152.0,0.00022795,2]
[399615583,1766549433346,-500.0,0.00022822,2]
[399615584,1766549433356,-2000.0,0.000229,2]
[399615585,1766549433366,-168.0,0.0002299,2]
[399615586,1766549433377,-1000.0,0.00023128,2]
[399615587,1766549433388,-16701.78751654,0.0002319,2]
[399615588,1766549433399,-150.18672367,0.00023673,2]
[399615589,1766549433412,-1488.9,0.00023866,2]
[399615590,1766549433422,-1613.0,0.00024305,2]
[399615591,1766549433432,-606.60697726,0.00024688,2]
[399615592,1766549433443,-619.83449192,0.00024688,2]
[399615593,1766549433454,-619.83449191,0.00024743,2]
[399615594,1766549433464,-500.0,0.00024787,2]
[399615595,1766549433475,-246.16201984,0.00024787,2]
[399615596,1766549433485,-206.68233506,0.00024787,2]
[399615597,1766549433495,-53721.4194222,0.00024788,2]
[399615598,1766549433506,-45769.7791545,0.00024788,2]
[399615599,1766549433517,-2583.5489773,0.00024788,2]
[399615600,1766549433527,-1175.0556969,0.00024788,2]
[399615601,1766549433537,-248.6557307,0.0002479,2]
[399615602,1766549433548,-151.02,0.0002479,2]
[399615603,1766549433567,-1086.06079525,0.00024797,2]
[399615604,1766549433576,-154.29092657,0.00024797,7]
[399615605,1766549433586,-619.83449191,0.00024797,2]
[399615606,1766549433596,-200.0,0.000248,2]
[399615607,1766549433606,-154.92559391,0.000248,2]
[399615608,1766549433616,-151.0,0.000248,2]
[399615609,1766549433626,-159591.46399818,0.000248,3]
[399615610,1766549433652,-33907.27388955,0.000248,3]
[399615611,1766549433784,-500.0,0.00024787,2]
[399615612,1766549433795,-1443.4481,0.000248,3]
[399615613,1766549433823,-275.02867488,0.00024787,2]
[399615614,1766549433835,-2524.97132512,0.000248,3]
[399615615,1766549433848,-269.01504261,0.000248,3]
[399615616,1766549433861,-1327.21239699,0.000248,3]
[399615619,1766549437745,-450.58499,0.0002049,2]
[399615620,1766549437760,-2273.05774565,0.0002049,2]
[399615621,1766549437797,-3637.15312271,0.0002049,2]
[399615622,1766549437810,-342.16705211,0.0002049,2]
[399615623,1766549437822,-4294.15905793,0.0002049,2]
[399615624,1766549437835,-1199.44426882,0.0002049,2]
[399615625,1766549437848,-309.60591375,0.0002049,2]
[399615626,1766549437861,-483.05057557,0.0002049,2]
[399615627,1766549437874,-11995.42433858,0.0002049,2]
[399615628,1766549437886,-1733.86308309,0.0002049,2]
[399615629,1766549437915,-11520.88985179,0.0002049,2]
[399615630,1766549437926,-6478.71014821,0.000248,3]
[399615631,1766549437939,-253.4450449,0.000248,3]
[399615632,1766549437951,-1260.78888652,0.000248,3]
[399615633,1766549437970,-34357.4999975,0.000248,3]
[399615640,1766549439920,-8975.40587101,0.000248,3]
[399615641,1766549439933,-8763.45477203,0.000248,3]
[399615642,1766549440026,-372.29681343,0.000248,3]
[399615643,1766549440039,-352772.61877395,0.000248,3]
[399615644,1766549440049,-150.0,0.000249,2]
[399615645,1766549440060,-8346.42,0.000249,7]
[399615646,1766549440070,-41284.3650277,0.000249,3]
[399615647,1766549440081,-678.86,0.00024911,2]
[399615648,1766549440091,-7087.33136433,0.00025,2]
[399615649,1766549440101,-450.0,0.00025,2]
[399615650,1766549440112,-100000.0,0.00025,2]
[399615651,1766549440122,-200.0,0.00025048,2]
[399615652,1766549440132,-150.0,0.00025067,2]
[399615654,1766549440143,-150.0,0.00025067,2]
[399615657,1766549440153,-150.0,0.00025067,2]
[399615659,1766549440163,-150.0,0.00025067,2]
[399615660,1766549440173,-150.0,0.00025067,2]
[399615663,1766549440183,-150.0,0.00025067,2]
[399615664,1766549440193,-150.0,0.00025067,2]
[399615666,1766549440204,-612.0,0.00025067,2]
[399615667,1766549440214,-3458.0,0.00025067,2]
[399615668,1766549440228,-1609.0,0.00025067,2]
[399615669,1766549440238,-1326.0,0.00025067,2]
[399615670,1766549440248,-1263.0,0.00025067,2]
[399615671,1766549440261,-432.0,0.00025067,2]
[399615672,1766549440271,-912.0,0.00025067,2]
[399615673,1766549440281,-1198.0,0.00025067,2]
[399615674,1766549440293,-4807.0,0.00025067,2]
[399615675,1766549440303,-2430.0,0.00025067,2]
[399615676,1766549440313,-6533.0,0.00025067,2]
[399615677,1766549440323,-16701.78751654,0.00025108,2]
[399615678,1766549440333,-200.0,0.00025298,2]
[399615679,1766549440343,-278.78,0.000257,7]
[399615680,1766549440353,-678.86,0.00025714,2]
[399615681,1766549440363,-1488.9,0.00025756,2]
[399615682,1766549440373,-4499.11102236,0.00026,2]
[399615683,1766549440384,-100000.0,0.00026,2]
[399615684,1766549440394,-152.88,0.00026173,2]
[399615685,1766549440404,-151.33873241,0.00026372,2]
[399615686,1766549440414,-184.97,0.00026377,2]
[399615687,1766549440425,-27342.53075427,0.000264,2]
[399615688,1766549440435,-678.86,0.00026518,2]
[399615689,1766549440445,-2258.0,0.00026587,2]
[399615690,1766549440455,-2000.0,0.000266,2]
[399615691,1766549440465,-760.23,0.00026676,2]
[399615692,1766549440476,-8346.42,0.000269,7]
[399615693,1766549440486,-500.0,0.00027,2]
[399615694,1766549440496,-100000.0,0.00027,2]
[399615695,1766549440506,-162.267832,0.00027,2]
[399615696,1766549440516,-151.0,0.00027,7]
[399615697,1766549440526,-151.0,0.00027,7]
[399615698,1766549440536,-157.023662,0.00027,7]
[399615699,1766549440547,-151.0,0.00027,7]
[399615700,1766549440556,-151.0,0.00027,7]
[399615701,1766549440566,-151.0,0.00027,7]
[399615702,1766549440575,-151.0,0.00027,7]
[399615703,1766549440586,-270.706318,0.00027,2]
[399615704,1766549440597,-270.706318,0.00027,2]
[399615705,1766549440607,-270.706318,0.00027,2]
[399615706,1766549440617,-270.706318,0.00027,2]
[399615707,1766549440626,-151.0,0.00027,7]
[399615708,1766549440636,-151.0,0.00027,7]
[399615709,1766549440646,-151.0,0.00027,7]
[399615710,1766549440657,-685.135947,0.00027,7]
[399615711,1766549440667,-685.135947,0.00027,7]
[399615712,1766549440678,-685.135947,0.00027,7]
[399615713,1766549440688,-151.0,0.00027,7]
[399615714,1766549440698,-685.135947,0.00027,7]
[399615715,1766549440708,-151.0,0.00027,7]
[399615716,1766549440718,-151.0,0.00027,7]
[399615717,1766549440729,-151.0,0.00027,7]
[399615718,1766549440739,-151.0,0.00027,7]
[399615719,1766549440749,-151.0,0.00027,7]
[399615720,1766549440759,-151.0,0.00027,7]
[399615721,1766549440768,-151.0,0.00027,7]
[399615722,1766549440778,-160.32441,0.00027,7]
[399615723,1766549440788,-160.32441,0.00027,7]
[399615724,1766549440798,-160.32441,0.00027,7]
[399615725,1766549440809,-160.32441,0.00027,7]
[399615726,1766549440819,-216.218907,0.00027,7]
[399615727,1766549440830,-216.218907,0.00027,7]
[399615728,1766549440840,-216.218907,0.00027,7]
[399615729,1766549440850,-216.218907,0.00027,7]
[399615730,1766549440860,-151.0,0.00027,7]
[399615731,1766549440871,-16701.78751654,0.00027025,2]
[399615732,1766549440882,-150.0,0.00027287,2]
[399615733,1766549440891,-150.0,0.00027287,2]
[399615734,1766549440902,-150.0,0.00027287,2]
[399615735,1766549440911,-678.86,0.00027321,2]
[399615736,1766549440922,-150.0,0.00027369,2]
[399615737,1766549440933,-151.18640818,0.00027397,2]
[399615738,1766549440943,-300.0,0.00027397,2]
[399615739,1766549440953,-1090.09,0.00027397,2]
[399615740,1766549440963,-874.57,0.00027397,16]
[399615741,1766549440973,-500.0,0.00027397,14]
[399615742,1766549440983,-274.672658,0.00027397,7]
[399615743,1766549440993,-274.672658,0.00027397,7]
[399615744,1766549441003,-274.672658,0.00027397,7]
[399615745,1766549441013,-274.672658,0.00027397,7]
[399615746,1766549441023,-152.616568,0.00027397,7]
[399615747,1766549441033,-150.0,0.00027397,5]
[399615748,1766549441043,-972.64,0.000274,14]
[399615749,1766549441053,-200.09993573,0.000275,2]
[399615750,1766549441063,-546.62751736,0.000275,2]
[399615751,1766549441073,-192.34,0.0002756,2]
[399615752,1766549441083,-500.0,0.00027562,2]
[399615753,1766549441094,-1488.9,0.00027647,2]
[399615754,1766549441104,-8318.42,0.00027671,2]
[399615755,1766549441114,-151.33873241,0.00027837,2]
[399615756,1766549441124,-500.0,0.00027894,120]
[399615757,1766549441134,-250.0,0.00027945,5]
[399615758,1766549441144,-11986.868919,0.00027957,2]
[399615759,1766549441155,-10212.6181527,0.00027957,2]
[399615760,1766549441164,-200.0,0.00027985,2]
[399615761,1766549441174,-207.4,0.00027985,2]
[399615762,1766549441184,-215.0738,0.00027985,2]
[399615763,1766549441194,-223.0315306,0.00027985,2]
[399615764,1766549441204,-231.28369723,0.00027985,2]
[399615765,1766549441214,-239.84119403,0.00027985,2]
[399615766,1766549441227,-248.71531821,0.00027985,2]
[399615767,1766549441237,-322.6107,0.00027985,2]
[399615768,1766549441247,-257.91778498,0.00027985,2]
[399615770,1766549441259,-267.46074303,0.00027985,2]
[399615771,1766549441269,-277.35679052,0.00027985,2]
[399615772,1766549441280,-578.20924308,0.00027985,2]
[399615773,1766549441292,-620.0,0.00027985,2]
[399615774,1766549441302,-250.0,0.00027985,2]
[399615775,1766549441312,-250.0,0.00027985,2]
[399615776,1766549441322,-250.0,0.00027985,2]
[399615777,1766549441332,-250.0,0.00027985,2]
[399615778,1766549441342,-250.0,0.00027985,2]
[399615779,1766549441351,-250.0,0.00027985,2]
[399615780,1766549441362,-250.0,0.00027985,2]
[399615781,1766549441372,-250.0,0.00027985,2]
[399615782,1766549441382,-250.0,0.00027985,2]
[399615783,1766549441394,-250.0,0.00027985,2]
[399615784,1766549441403,-250.0,0.00027985,2]
[399615785,1766549441414,-500.0,0.00027985,2]
[399615786,1766549441423,-500.0,0.00027985,2]
[399615787,1766549441433,-500.0,0.00027985,2]
[399615788,1766549441443,-500.0,0.00027985,2]
[399615789,1766549441453,-500.0,0.00027985,2]
[399615790,1766549441463,-250.0,0.00027985,2]
[399615791,1766549441473,-250.0,0.00027985,2]
[399615792,1766549441484,-500.0,0.00027985,2]
[399615793,1766549441494,-250.0,0.00027985,2]
[399615794,1766549441504,-500.0,0.00027985,2]
[399615795,1766549441514,-250.0,0.00027985,2]
[399615796,1766549441523,-500.0,0.00027985,2]
[399615797,1766549441533,-263.8761222,0.00027985,2]
[399615798,1766549441543,-500.0,0.00027985,2]
[399615799,1766549441553,-500.0,0.00027985,2]
[399615800,1766549441563,-619.32118266,0.00027985,2]
[399615801,1766549441572,-500.0,0.00027985,2]
[399615802,1766549441582,-500.0,0.00027985,2]
[399615803,1766549441591,-500.0,0.00027985,2]
[399615804,1766549441601,-352.11821613,0.00027985,2]
[399615805,1766549441611,-300.0,0.00028,120]
[399615806,1766549441620,-70957.91863836,0.00028,2]
[399615807,1766549441630,-50598.41821355,0.00028,2]
[399615808,1766549441641,-100000.0,0.00028,2]
[399615809,1766549441651,-151.0,0.00028,7]
[399615810,1766549441661,-151.0,0.00028,7]
[399615811,1766549441670,-151.0,0.00028,7]
[399615812,1766549441680,-151.0,0.00028,7]
[399615813,1766549441690,-151.0,0.00028,7]
[399615814,1766549441700,-151.0,0.00028,7]
[399615815,1766549441710,-151.0,0.00028,7]
[399615816,1766549441720,-151.0,0.00028,7]
[399615817,1766549441730,-207.81417,0.00028,7]
[399615818,1766549441740,-100000.0,0.00028,120]
[399615819,1766549441750,-150.0,0.00028067,2]
[399615820,1766549441760,-150.0,0.00028067,2]
[399615821,1766549441771,-150.0,0.00028067,2]
[399615822,1766549441781,-150.0,0.00028067,2]
[399615823,1766549441791,-150.0,0.00028067,2]
[399615824,1766549441801,-150.0,0.00028067,2]
[399615825,1766549441811,-150.0,0.00028067,2]
[399615826,1766549441822,-612.0,0.00028067,2]
[399615827,1766549441832,-3458.0,0.00028067,2]
[399615828,1766549441842,-1609.0,0.00028067,2]
[399615829,1766549441851,-1326.0,0.00028067,2]
[399615830,1766549441862,-1263.0,0.00028067,2]
[399615831,1766549441872,-432.0,0.00028067,2]
[399615832,1766549441881,-912.0,0.00028067,2]
[399615833,1766549441891,-1198.0,0.00028067,2]
[399615834,1766549441901,-4807.0,0.00028067,2]
[399615835,1766549441911,-2430.0,0.00028067,2]
[399615836,1766549441921,-6533.0,0.00028067,2]
[399615837,1766549441931,-278.78,0.000281,7]
[399615838,1766549441941,-678.86,0.00028125,2]
[399615839,1766549441950,-172.14,0.00028133,2]
[399615840,1766549441961,-350.3296444,0.00028493,5]
[399615841,1766549441970,-8346.42,0.000285,7]
[399615842,1766549441980,-2674.6319815,0.00028664,2]
[399615843,1766549441990,-2278.7431239,0.00028664,2]
[399615844,1766549441999,-209.0,0.0002882,30]
[399615845,1766549442009,-678.86,0.00028928,2]
[399615846,1766549442019,-16701.78751654,0.00028942,2]
[399615847,1766549442029,-550.0,0.00029,2]
[399615848,1766549442038,-100000.0,0.00029,2]
[399615849,1766549442047,-3162.0,0.00029082,2]
[399615850,1766549442057,-332.0,0.00029102,10]
[399615851,1766549442066,-166.0,0.000293,30]
[399615852,1766549442076,-151.33873241,0.00029302,2]
[399615853,1766549442085,-334.5472959,0.00029354,2]
[399615854,1766549442095,-287.61899177,0.00029354,2]
[399615855,1766549442104,-1113.3088266,0.000294,2]
[399615856,1766549442113,-151.02,0.0002949,2]
[399615857,1766549442123,-491412.61560995,0.000295,120]
[399615858,1766549442133,-151.0,0.000295,7]
[399615859,1766549442143,-219.024973,0.000295,7]
[399615860,1766549442152,-151.0,0.000295,7]
[399615861,1766549442161,-151.0,0.000295,7]
[399615862,1766549442171,-151.0,0.000295,7]
[399615863,1766549442181,-296.190699,0.000295,7]
[399615864,1766549442190,-274.672658,0.000295,7]
[399615865,1766549442200,-274.672658,0.000295,7]
[399615866,1766549442210,-274.672658,0.000295,7]
[399615867,1766549442224,-151.0,0.000295,7]
[399615868,1766549442233,-274.672658,0.000295,7]
[399615869,1766549442243,-151.0,0.000295,7]
[399615870,1766549442254,-151.0,0.000295,7]
[399615871,1766549442264,-189.241851,0.000295,7]
[399615872,1766549442274,-270.706318,0.000295,2]
[399615873,1766549442284,-270.706318,0.000295,2]
[399615874,1766549442296,-270.706318,0.000295,2]
[399615875,1766549442305,-270.706318,0.000295,2]
[399615876,1766549442315,-151.0,0.000295,7]
[399615877,1766549442325,-151.0,0.000295,7]
[399615878,1766549442335,-151.0,0.000295,7]
[399615879,1766549442345,-685.135947,0.000295,7]
[399615880,1766549442355,-685.135947,0.000295,7]
[399615881,1766549442366,-685.135947,0.000295,7]
[399615882,1766549442377,-151.0,0.000295,7]
[399615883,1766549442386,-685.135947,0.000295,7]
[399615884,1766549442396,-151.0,0.000295,7]
[399615885,1766549442406,-151.0,0.000295,7]
[399615886,1766549442416,-151.0,0.000295,7]
[399615887,1766549442426,-151.0,0.000295,7]
[399615888,1766549442435,-151.0,0.000295,7]
[399615889,1766549442445,-151.0,0.000295,7]
[399615890,1766549442455,-160.32441,0.000295,7]
[399615891,1766549442466,-160.32441,0.000295,7]
[399615892,1766549442475,-160.32441,0.000295,7]
[399615893,1766549442485,-160.32441,0.000295,7]
[399615894,1766549442495,-216.218907,0.000295,7]
[399615895,1766549442506,-216.218907,0.000295,7]
[399615896,1766549442515,-216.218907,0.000295,7]
[399615897,1766549442525,-216.218907,0.000295,7]
[399615898,1766549442534,-151.0,0.000295,7]
[399615899,1766549442544,-154.840936,0.000295,7]
[399615900,1766549442554,-151.0,0.000295,7]
[399615901,1766549442563,-151.0,0.000295,7]
[399615902,1766549442573,-151.0,0.000295,7]
[399615903,1766549442582,-157.31902595,0.000295,7]
[399615904,1766549442591,-152.88,0.00029525,2]
[399615905,1766549442601,-1488.9,0.00029537,2]
[399615906,1766549442610,-184.97,0.00029626,2]
[399615907,1766549442620,-211.90100682,0.00029669,4]
[399615908,1766549442630,-678.86,0.00029732,2]
[399615909,1766549442640,-504.03,0.000298,30]
[399615910,1766549442650,-78479.35598264,0.000299,2]
[399615911,1766549442659,-8346.42,0.000299,7]
[399615912,1766549442669,-235.97210478,0.0002999,2]
[399615914,1766549442679,-250.0,0.0003,30]
[399615916,1766549442689,-300.0,0.0003,120]
[399615918,1766549442698,-16372.3983691,0.0003,2]
[399615920,1766549442708,-3007.52697745,0.0003,120]
[399615922,1766549442719,-19766.64928641,0.0003,2]
[399615923,1766549442729,-1807.38217057,0.0003,2]
[399615924,1766549442739,-438.80696657,0.0003,2]
[399615925,1766549442748,-162.11910961,0.0003,2]
[399615926,1766549442758,-100000.0,0.0003,3]
[399615927,1766549442768,-150.0,0.0003,2]
[399615928,1766549442777,-278.78,0.0003,7]
[399615929,1766549442787,-1067.62233822,0.0003013,2]
[399615930,1766549442797,-13775.48097491,0.0003013,2]
[399615931,1766549442807,-630.4921551,0.0003013,2]
[399615932,1766549442818,-5031.02213611,0.0003013,2]
[399615933,1766549442828,-200.57526558,0.0003013,2]
[399615934,1766549442838,-1217.60598196,0.0003013,2]
[399615935,1766549442848,-7688.89579576,0.0003013,2]
[399615936,1766549442858,-1090.09,0.00030137,2]
[399615937,1766549442868,-7162.97834755,0.00030137,30]
[399615938,1766549442879,-150.0,0.00030287,2]
[399615939,1766549442889,-551.76,0.000303,30]
[399615940,1766549442899,-2000.0,0.000303,2]
[399615941,1766549442909,-678.86,0.00030535,2]
[399615942,1766549443220,-346.92554585,0.00030723,2]
[399615943,1766549443231,-298.26089446,0.00030723,2]
[399615944,1766549443241,-599.60298507,0.00030724,2]
[399615945,1766549443251,-151.33873241,0.00030768,2]
[399615946,1766549443262,-2597.56135515,0.0003084,2]
[399615947,1766549443272,-209.0,0.0003084,30]
[399615948,1766549443282,-16701.78751654,0.0003086,2]
[399615949,1766549443294,-78567.27691245,0.0003095,2]
[399615951,1766549443304,-151.0,0.0003095,31]
[399615953,1766549443313,-151.0,0.0003095,31]
[399615955,1766549443323,-151.0,0.0003095,31]
[399615957,1766549443332,-151.0,0.0003095,31]
[399615959,1766549443341,-151.0,0.0003095,31]
[399615961,1766549443350,-151.0,0.0003095,31]
[399615963,1766549443359,-151.0,0.0003095,31]
[399615965,1766549443368,-151.0,0.0003095,31]
[399615967,1766549443378,-250.0,0.00031,30]
[399615969,1766549443388,-166.0,0.00031,31]
[399615971,1766549443397,-152.0,0.00031,120]
[399615973,1766549443406,-600.0,0.00031,2]
[399615974,1766549443416,-100000.0,0.00031,3]
[399615975,1766549443426,-849.0,0.00031,2]
[399615976,1766549443437,-299.0,0.00031,2]
[399615977,1766549443446,-983.0,0.00031,2]
[399615978,1766549443455,-305.0,0.00031,2]
[399615979,1766549443466,-150.0,0.00031067,2]
[399615980,1766549443475,-150.0,0.00031067,2]
[399615981,1766549443484,-150.0,0.00031067,2]
[399615982,1766549443493,-150.0,0.00031067,2]
[399615983,1766549443503,-612.0,0.00031067,2]
[399615984,1766549443513,-3458.0,0.00031067,2]
[399615985,1766549443523,-1609.0,0.00031067,2]
[399615986,1766549443532,-1326.0,0.00031067,2]
[399615987,1766549443542,-1263.0,0.00031067,2]
[399615988,1766549443551,-432.0,0.00031067,2]
[399615989,1766549443560,-912.0,0.00031067,2]
[399615990,1766549443571,-1198.0,0.00031067,2]
[399615991,1766549443581,-4807.0,0.00031067,2]
[399615992,1766549443590,-2430.0,0.00031067,2]
[399615993,1766549443600,-6533.0,0.00031067,2]
[399615994,1766549443609,-166.42736222,0.00031109,2]
[399615995,1766549443619,-152.0,0.00031226,3]
[399615996,1766549443629,-151.0,0.00031227,31]
[399615997,1766549443639,-1488.9,0.00031428,2]
[399615998,1766549443649,-250.0,0.0003144,120]
[399615999,1766549443658,-1075.15443169,0.00031492,4]
[399616000,1766549443669,-185.98,0.00031507,120]
[399616001,1766549443678,-606.60697725,0.00031794,2]
[399616002,1766549443688,-250.0,0.00032,30]
[399616003,1766549443698,-300.0,0.00032,120]
[399616004,1766549443707,-359.76179104,0.00032092,2]
[399616005,1766549443717,-440.6311978,0.00032092,2]
[399616006,1766549443727,-151.33873241,0.00032233,2]
[399616007,1766549443736,-889.18421964,0.000323,2]
[399616008,1766549443745,-182.76406687,0.00032677,2]
[399616009,1766549443754,-500.0,0.0003275,30]
[399616010,1766549443764,-150.0,0.0003275,2]
[399616011,1766549443773,-248.6557307,0.00032767,2]
[399616012,1766549443783,-500.0,0.00032777,2]
[399616013,1766549443792,-500.0,0.00032777,2]
[399616014,1766549443801,-500.0,0.00032777,2]
[399616015,1766549443811,-500.0,0.00032777,2]
[399616016,1766549443820,-500.0,0.00032777,2]
[399616017,1766549443830,-500.0,0.00032777,2]
[399616018,1766549443840,-500.0,0.00032777,2]
[399616019,1766549443849,-500.0,0.00032777,2]
[399616020,1766549443859,-500.0,0.00032777,2]
[399616021,1766549443869,-500.0,0.00032777,2]
[399616022,1766549443878,-500.0,0.00032777,2]
[399616023,1766549443888,-500.0,0.00032777,2]
[399616024,1766549443897,-500.0,0.00032777,2]
[399616025,1766549443907,-500.0,0.00032777,2]
[399616026,1766549443917,-500.0,0.00032777,2]